[Event "The Elitserien 2024/25: round 1 - 3"]
[Site "Scandic Infra City, Kanalvagen 10, Upplands Vasby, Sweden"]
[Date "2024.10.04"]
[Round "1.33"]
[White "Solodovnichenko, Yuri"]
[Black "Hammer, Jon Ludvig"]
[Result "1/2-1/2"]
[TimeControl "90 minutes for 40 moves + 30 minutes for the rest of the game + 30 seconds per move from move one."]
[WhiteTitle "GM"]
[BlackTitle "GM"]
[WhiteFideId "14104369"]
[BlackFideId "1503707"]
[WhiteElo "2490"]
[BlackElo "2595"]

1. e4 {[%clk 01:30:15]} {[%emt 00:00:44]} c6 {[%clk 01:30:53]} {[%emt
00:00:07]} 2. d4 {[%clk 01:29:20]} {[%emt 00:01:26]} d5 {[%clk 01:31:15]}
{[%emt 00:00:07]} 3. Nc3 {[%clk 01:29:41]} {[%emt 00:00:09]} dxe4 {[%clk
01:31:37]} {[%emt 00:00:09]} 4. Nxe4 {[%clk 01:30:06]} {[%emt 00:00:04]} Nf6
{[%clk 01:31:49]} {[%emt 00:00:18]} 5. Nxf6+ {[%clk 01:30:28]} {[%emt
00:00:08]} exf6 {[%clk 01:32:11]} {[%emt 00:00:07]} 6. Bc4 {[%clk 01:30:47]}
{[%emt 00:00:11]} Qe7+ {[%clk 01:31:17]} {[%emt 00:01:26]} 7. Qe2 {[%clk
01:27:37]} {[%emt 00:03:38]} Be6 {[%clk 01:31:30]} {[%emt 00:00:18]} 8. Bxe6
{[%clk 01:26:49]} {[%emt 00:01:19]} Qxe6 {[%clk 01:31:48]} {[%emt 00:00:10]} 9.
Bf4 {[%clk 01:25:12]} {[%emt 00:02:07]} Nd7 {[%clk 01:31:42]} {[%emt 00:00:38]}
10. O-O-O {[%clk 01:23:15]} {[%emt 00:02:26]} Nb6 {[%clk 01:29:53]} {[%emt
00:02:19]} 11. Bg3 {[%clk 01:11:56]} {[%emt 00:11:49]} h5 {[%clk 01:25:23]}
{[%emt 00:05:00]} 12. h3 {[%clk 01:07:29]} {[%emt 00:04:56]} h4 {[%clk
01:09:11]} {[%emt 00:16:43]} 13. Bh2 {[%clk 01:07:44]} {[%emt 00:00:15]} O-O-O
{[%clk 01:09:27]} {[%emt 00:00:14]} 14. Qxe6+ {[%clk 01:07:22]} {[%emt
00:00:53]} fxe6 {[%clk 01:09:31]} {[%emt 00:00:26]} 15. Ne2 {[%clk 01:05:20]}
{[%emt 00:02:31]} Bd6 {[%clk 01:09:43]} {[%emt 00:00:17]} 16. Bxd6 {[%clk
01:03:59]} {[%emt 00:01:51]} Rxd6 {[%clk 01:09:33]} {[%emt 00:00:42]} 17. b3
{[%clk 01:04:20]} {[%emt 00:00:08]} Nd5 {[%clk 01:01:35]} {[%emt 00:08:29]} 18.
Rhe1 {[%clk 00:58:09]} {[%emt 00:06:39]} Re8 {[%clk 01:00:36]} {[%emt
00:01:30]} 19. c4 {[%clk 00:52:26]} {[%emt 00:06:13]} Ne7 {[%clk 01:00:36]}
{[%emt 00:00:29]} 20. c5 {[%clk 00:49:04]} {[%emt 00:03:53]} Rd7 {[%clk
00:59:57]} {[%emt 00:01:09]} 21. Nc3 {[%clk 00:42:23]} {[%emt 00:07:10]} Nf5
{[%clk 00:54:39]} {[%emt 00:05:48]} 22. d5 {[%clk 00:38:18]} {[%emt 00:04:35]}
cxd5 {[%clk 00:53:48]} {[%emt 00:01:21]} 23. Nxd5 {[%clk 00:32:45]} {[%emt
00:06:03]} Red8 {[%clk 00:51:06]} {[%emt 00:03:13]} 24. Nc3 {[%clk 00:28:01]}
{[%emt 00:05:13]} Rxd1+ {[%clk 00:49:32]} {[%emt 00:02:04]} 25. Rxd1 {[%clk
00:28:21]} {[%emt 00:00:10]} Rxd1+ {[%clk 00:48:16]} {[%emt 00:01:47]} 26. Kxd1
{[%clk 00:28:46]} {[%emt 00:00:03]} Kd7 {[%clk 00:48:31]} {[%emt 00:00:15]} 27.
b4 {[%clk 00:22:10]} {[%emt 00:07:07]} Kc6 {[%clk 00:48:51]} {[%emt 00:00:11]}
28. Kc2 {[%clk 00:22:03]} {[%emt 00:00:36]} a5 {[%clk 00:42:19]} {[%emt
00:07:02]} 29. a3 {[%clk 00:19:37]} {[%emt 00:02:55]} Nd4+ {[%clk 00:41:32]}
{[%emt 00:01:16]} 30. Kd3 {[%clk 00:19:54]} {[%emt 00:00:13]} Nb5 {[%clk
00:40:44]} {[%emt 00:01:18]} 31. Nb1 {[%clk 00:15:56]} {[%emt 00:04:28]} Kd5
{[%clk 00:36:57]} {[%emt 00:04:17]} 32. f4 {[%clk 00:14:51]} {[%emt 00:01:34]}
g6 {[%clk 00:28:24]} {[%emt 00:09:04]} 33. Nd2 {[%clk 00:08:31]} {[%emt
00:06:49]} Nxa3 {[%clk 00:25:46]} {[%emt 00:03:10]} 34. bxa5 {[%clk 00:08:50]}
{[%emt 00:00:11]} e5 {[%clk 00:25:54]} {[%emt 00:00:21]} 35. fxe5 {[%clk
00:08:09]} {[%emt 00:01:11]} fxe5 {[%clk 00:26:14]} {[%emt 00:00:11]} 36. c6
{[%clk 00:06:44]} {[%emt 00:01:53]} Kxc6 {[%clk 00:20:11]} {[%emt 00:06:33]} 37.
Nf3 {[%clk 00:07:09]} {[%emt 00:00:04]} Kd5 {[%clk 00:20:23]} {[%emt 00:00:19]}
38. Nxh4 {[%clk 00:07:19]} {[%emt 00:00:20]} g5 {[%clk 00:17:58]} {[%emt
00:02:56]} 39. Nf5 {[%clk 00:07:40]} {[%emt 00:00:08]} e4+ {[%clk 00:18:12]}
{[%emt 00:00:16]} 40. Ke2 {[%clk 00:07:45]} {[%emt 00:00:25]} Ke5 {[%clk
00:18:04]} {[%emt 00:00:37]} 41. Ne3 {[%clk 00:07:43]} {[%emt 00:00:33]} Nb5
{[%clk 00:18:09]} {[%emt 00:00:25]} 42. g3 {[%clk 00:06:34]} {[%emt 00:01:40]}
Nd4+ {[%clk 00:18:23]} {[%emt 00:00:16]} 43. Kf2 {[%clk 00:06:29]} {[%emt
00:00:34]} Nc6 {[%clk 00:18:21]} {[%emt 00:00:32]} 44. Ng4+ {[%clk 00:05:48]}
{[%emt 00:01:11]} Kf5 {[%clk 00:13:48]} {[%emt 00:05:02]} 45. Ne3+ {[%clk
00:05:30]} {[%emt 00:00:48]} Ke6 {[%clk 00:14:11]} {[%emt 00:00:07]} 46. Nc4
{[%clk 00:05:22]} {[%emt 00:00:38]} Kd5 {[%clk 00:14:24]} {[%emt 00:00:18]} 47.
Ne3+ {[%clk 00:05:24]} {[%emt 00:00:27]} Kd4 {[%clk 00:14:32]} {[%emt
00:00:20]} 48. h4 {[%clk 00:05:26]} {[%emt 00:00:30]} gxh4 {[%clk 00:14:58]}
{[%emt 00:00:04]} 49. gxh4 {[%clk 00:05:47]} {[%emt 00:00:09]} Nxa5 {[%clk
00:15:13]} {[%emt 00:00:15]} 50. h5 {[%clk 00:05:59]} {[%emt 00:00:18]} Ke5
{[%clk 00:15:01]} {[%emt 00:00:42]} 51. h6 {[%clk 00:06:20]} {[%emt 00:00:09]}
Kf6 {[%clk 00:15:22]} {[%emt 00:00:08]} 52. Ng4+ {[%clk 00:06:38]} {[%emt
00:00:13]} Kg6 {[%clk 00:15:45]} {[%emt 00:00:07]} 53. Ke3 {[%clk 00:07:01]}
{[%emt 00:00:07]} Nc4+ {[%clk 00:15:45]} {[%emt 00:00:28]} 54. Kxe4 {[%clk
00:07:25]} {[%emt 00:00:07]} Nd6+ {[%clk 00:16:09]} {[%emt 00:00:06]} 55. Kd5
{[%clk 00:07:41]} {[%emt 00:00:14]} Nf7 {[%clk 00:16:33]} {[%emt 00:00:06]} 56.
Kc5 {[%clk 00:07:48]} {[%emt 00:00:24]} b6+ {[%clk 00:16:55]} {[%emt 00:00:07]}
57. Kxb6 {[%clk 00:08:14]} {[%emt 00:00:05]} Nxh6 {[%clk 00:17:17]} {[%emt
00:00:07]} 58. Nxh6 {[%clk 00:08:42]} {[%emt 00:00:03]} Kxh6 {[%emt 00:00:02]}
1/2-1/2

[Event "The Elitserien 2024/25: round 1 - 3"]
[Site "Scandic Infra City, Kanalvagen 10, Upplands Vasby, Sweden"]
[Date "2024.10.04"]
[Round "1.34"]
[White "Seo, Jung Min"]
[Black "Sumets, Andrey"]
[Result "0-1"]
[TimeControl "90 minutes for 40 moves + 30 minutes for the rest of the game + 30 seconds per move from move one."]
[WhiteTitle "IM"]
[BlackTitle "GM"]
[WhiteFideId "1734687"]
[BlackFideId "14105500"]
[WhiteElo "2505"]
[BlackElo "2517"]

1. e4 {[%clk 01:30:58]} {[%emt 00:00:02]} e6 {[%clk 01:30:21]} {[%emt
00:00:40]} 2. d4 {[%clk 01:31:24]} {[%emt 00:00:04]} d5 {[%clk 01:30:48]}
{[%emt 00:00:02]} 3. e5 {[%clk 01:29:59]} {[%emt 00:01:55]} c5 {[%clk
01:30:30]} {[%emt 00:00:47]} 4. c3 {[%clk 01:30:26]} {[%emt 00:00:04]} Nc6
{[%clk 01:30:34]} {[%emt 00:00:26]} 5. Nf3 {[%clk 01:30:51]} {[%emt 00:00:05]}
Bd7 {[%clk 01:31:01]} {[%emt 00:00:02]} 6. Be2 {[%clk 01:29:46]} {[%emt
00:01:36]} h6 {[%clk 01:29:22]} {[%emt 00:02:08]} 7. O-O {[%clk 01:24:16]}
{[%emt 00:06:00]} Rc8 {[%clk 01:29:47]} {[%emt 00:00:06]} 8. a3 {[%clk
01:06:31]} {[%emt 00:18:15]} Nge7 {[%clk 01:28:43]} {[%emt 00:01:33]} 9. dxc5
{[%clk 01:05:37]} {[%emt 00:01:25]} Ng6 {[%clk 01:28:59]} {[%emt 00:00:13]} 10.
b4 {[%clk 01:05:07]} {[%emt 00:00:59]} Ngxe5 {[%clk 01:22:55]} {[%emt
00:06:35]} 11. Nxe5 {[%clk 00:55:24]} {[%emt 00:10:13]} Nxe5 {[%clk 01:23:19]}
{[%emt 00:00:06]} 12. f4 {[%clk 00:55:00]} {[%emt 00:00:55]} Nc4 {[%clk
01:10:38]} {[%emt 00:13:11]} 13. Bxc4 {[%clk 00:45:07]} {[%emt 00:10:22]} dxc4
{[%clk 01:11:02]} {[%emt 00:00:06]} 14. Qd4 {[%clk 00:39:31]} {[%emt 00:06:06]}
b6 {[%clk 01:07:25]} {[%emt 00:04:06]} 15. cxb6 {[%clk 00:39:15]} {[%emt
00:00:47]} Qxb6 {[%clk 00:52:59]} {[%emt 00:14:56]} 16. Be3 {[%clk 00:37:06]}
{[%emt 00:02:38]} Qxd4 {[%clk 00:52:16]} {[%emt 00:01:13]} 17. Bxd4 {[%clk
00:37:32]} {[%emt 00:00:05]} a6 {[%clk 00:51:40]} {[%emt 00:01:06]} 18. Nd2
{[%clk 00:34:34]} {[%emt 00:03:28]} h5 {[%clk 00:45:43]} {[%emt 00:06:28]} 19.
Rae1 {[%clk 00:32:23]} {[%emt 00:02:39]} f6 {[%clk 00:33:28]} {[%emt 00:12:46]}
20. Ne4 {[%clk 00:31:31]} {[%emt 00:01:21]} Bc6 {[%clk 00:24:48]} {[%emt
00:09:10]} 21. Bc5 {[%clk 00:29:01]} {[%emt 00:03:01]} Bxe4 {[%clk 00:22:47]}
{[%emt 00:02:32]} 22. Rxe4 {[%clk 00:28:52]} {[%emt 00:00:39]} Bxc5+ {[%clk
00:23:10]} {[%emt 00:00:07]} 23. bxc5 {[%clk 00:29:21]} {[%emt 00:00:02]} Kf7
{[%clk 00:21:59]} {[%emt 00:01:40]} 24. Rxc4 {[%clk 00:29:48]} {[%emt
00:00:03]} Rc7 {[%clk 00:22:07]} {[%emt 00:00:21]} 25. Rb1 {[%clk 00:29:14]}
{[%emt 00:01:05]} Rhc8 {[%clk 00:22:31]} {[%emt 00:00:06]} 26. Rb6 {[%clk
00:29:40]} {[%emt 00:00:04]} Rxc5 {[%clk 00:22:49]} {[%emt 00:00:13]} 27. Rxc5
{[%clk 00:30:08]} {[%emt 00:00:03]} Rxc5 {[%clk 00:23:14]} {[%emt 00:00:04]} 28.
Rxa6 {[%clk 00:30:34]} {[%emt 00:00:04]} Rxc3 {[%clk 00:23:40]} {[%emt
00:00:04]} 29. g3 {[%clk 00:30:50]} {[%emt 00:00:14]} Rc1+ {[%clk 00:15:10]}
{[%emt 00:09:01]} 30. Kg2 {[%clk 00:31:15]} {[%emt 00:00:05]} Rc2+ {[%clk
00:15:37]} {[%emt 00:00:02]} 31. Kh3 {[%clk 00:29:46]} {[%emt 00:01:59]} g5
{[%clk 00:14:34]} {[%emt 00:01:33]} 32. fxg5 {[%clk 00:30:09]} {[%emt
00:00:07]} fxg5 {[%clk 00:15:00]} {[%emt 00:00:05]} 33. g4 {[%clk 00:29:58]}
{[%emt 00:00:41]} h4 {[%clk 00:14:08]} {[%emt 00:01:21]} 34. a4 {[%clk
00:23:25]} {[%emt 00:07:03]} Ra2 {[%clk 00:14:34]} {[%emt 00:00:05]} 35. Ra8
{[%clk 00:20:28]} {[%emt 00:03:27]} Kf6 {[%clk 00:09:45]} {[%emt 00:05:20]} 36.
a5 {[%clk 00:15:11]} {[%emt 00:05:46]} Ke5 {[%clk 00:10:07]} {[%emt 00:00:07]}
37. a6 {[%clk 00:15:36]} {[%emt 00:00:06]} Ra3+ {[%clk 00:04:36]} {[%emt
00:06:00]} 38. Kg2 {[%clk 00:15:34]} {[%emt 00:00:32]} h3+ {[%clk 00:04:28]}
{[%emt 00:00:39]} 39. Kf2 {[%clk 00:15:41]} {[%emt 00:00:24]} Kf4 {[%clk
00:04:09]} {[%emt 00:00:48]} 40. a7 {[%clk 00:15:54]} {[%emt 00:00:17]} Ra2+
{[%clk 00:04:24]} {[%emt 00:00:15]} 41. Ke1 {[%clk 00:14:23]} {[%emt 00:02:02]}
Ke3 {[%clk 00:03:08]} {[%emt 00:01:44]} 42. Kd1 {[%clk 00:14:25]} {[%emt
00:00:29]} e5 {[%clk 00:02:28]} {[%emt 00:01:10]} 43. Rh8 {[%clk 00:03:16]}
{[%emt 00:11:40]} Ra1+ {[%clk 00:02:46]} {[%emt 00:00:12]} 44. Kc2 {[%clk
00:03:45]} Rxa7 {[%clk 00:03:08]} {[%emt 00:00:09]} 45. Rxh3+ {[%clk 00:04:14]}
{[%emt 00:00:02]} Ke2 {[%clk 00:01:07]} {[%emt 00:02:28]} 46. Rh5 {[%clk
00:30:01]} {[%emt 00:04:45]} Rc7+ {[%clk 00:27:44]} {[%emt 00:03:51]} 47. Kb2
{[%clk 00:30:23]} {[%emt 00:00:09]} Rg7 {[%clk 00:16:16]} {[%emt 00:11:59]} 48.
h4 {[%clk 00:27:51]} {[%emt 00:03:02]} gxh4 {[%clk 00:16:39]} {[%emt 00:00:08]}
49. Rxh4 {[%clk 00:28:13]} {[%emt 00:00:08]} Rb7+ {[%clk 00:12:42]} {[%emt
00:04:24]} 50. Kc3 {[%clk 00:19:24]} {[%emt 00:09:21]} Rc7+ {[%clk 00:11:59]}
{[%emt 00:01:13]} 51. Kb3 {[%clk 00:19:21]} {[%emt 00:00:33]} e4 {[%clk
00:12:12]} {[%emt 00:00:17]} 52. g5 {[%clk 00:19:50]} Kd3 {[%clk 00:09:22]}
{[%emt 00:03:19]} 53. Rh6 {[%clk 00:11:42]} {[%emt 00:08:40]} Rb7+ {[%clk
00:09:06]} {[%emt 00:00:46]} 54. Ka4 {[%clk 00:12:11]} e3 {[%clk 00:08:11]}
{[%emt 00:01:25]} 55. Rd6+ {[%clk 00:12:16]} {[%emt 00:00:25]} Kc4 {[%clk
00:07:25]} {[%emt 00:01:16]} 56. Rc6 {[%clk 00:11:19]} {[%emt 00:01:28]} Kd5
{[%clk 00:07:20]} {[%emt 00:00:33]} 57. Rc8 {[%clk 00:10:52]} {[%emt 00:01:01]}
Re7 {[%clk 00:05:25]} {[%emt 00:02:24]} 58. Rc1 {[%clk 00:11:03]} {[%emt
00:00:19]} e2 {[%clk 00:05:36]} {[%emt 00:00:18]} 59. Re1 {[%clk 00:11:31]}
{[%emt 00:00:02]} Kc4 {[%clk 00:06:01]} {[%emt 00:00:06]} 0-1

[Event "The Elitserien 2024/25: round 1 - 3"]
[Site "Scandic Infra City, Kanalvagen 10, Upplands Vasby, Sweden"]
[Date "2024.10.04"]
[Round "1.35"]
[White "Hillarp, Tiger"]
[Black "Blomqvist, Erik"]
[Result "1/2-1/2"]
[TimeControl "90 minutes for 40 moves + 30 minutes for the rest of the game + 30 seconds per move from move one."]
[WhiteTitle "GM"]
[BlackTitle "GM"]
[WhiteFideId "1700812"]
[BlackFideId "1709437"]
[WhiteElo "2457"]
[BlackElo "2491"]

1. Nf3 {[%clk 01:30:57]} {[%emt 00:00:02]} d5 {[%clk 01:30:01]} {[%emt
00:00:59]} 2. g3 {[%clk 01:31:18]} {[%emt 00:00:10]} g6 {[%clk 01:30:19]}
{[%emt 00:00:11]} 3. Bg2 {[%clk 01:30:35]} {[%emt 00:01:13]} Bg7 {[%clk
01:30:38]} {[%emt 00:00:11]} 4. O-O {[%clk 01:30:57]} {[%emt 00:00:08]} e5
{[%clk 01:30:51]} {[%emt 00:00:16]} 5. d3 {[%clk 01:31:22]} {[%emt 00:00:06]}
Nc6 {[%clk 01:30:44]} {[%emt 00:00:38]} 6. e4 {[%clk 01:30:34]} {[%emt
00:01:17]} dxe4 {[%clk 01:30:53]} {[%emt 00:00:21]} 7. dxe4 {[%clk 01:30:56]}
{[%emt 00:00:07]} Qxd1 {[%clk 01:30:35]} {[%emt 00:00:49]} 8. Rxd1 {[%clk
01:31:19]} {[%emt 00:00:08]} Bg4 {[%clk 01:29:43]} {[%emt 00:01:21]} 9. c3
{[%clk 01:31:05]} {[%emt 00:00:45]} f6 {[%clk 01:29:28]} {[%emt 00:00:44]} 10.
Na3 {[%clk 01:25:47]} {[%emt 00:05:48]} Nh6 {[%clk 01:25:10]} {[%emt 00:04:47]}
11. Nc4 {[%clk 01:22:46]} {[%emt 00:03:33]} Nf7 {[%clk 01:23:34]} {[%emt
00:02:04]} 12. Ne3 {[%clk 01:22:11]} {[%emt 00:01:05]} Be6 {[%clk 01:23:47]}
{[%emt 00:00:19]} 13. Ne1 {[%clk 01:13:57]} {[%emt 00:08:43]} Nd6 {[%clk
01:13:05]} {[%emt 00:11:12]} 14. Nd3 {[%clk 01:12:59]} {[%emt 00:01:29]} b6
{[%clk 01:12:23]} {[%emt 00:01:11]} 15. b3 {[%clk 01:01:45]} {[%emt 00:11:44]}
O-O-O {[%clk 01:11:50]} {[%emt 00:01:03]} 16. Bb2 {[%clk 01:01:27]} {[%emt
00:00:49]} Kb8 {[%clk 01:05:16]} {[%emt 00:07:04]} 17. c4 {[%clk 00:58:46]}
{[%emt 00:03:11]} Rhe8 {[%clk 00:47:58]} {[%emt 00:17:48]} 18. Nd5 {[%clk
00:53:56]} {[%emt 00:05:19]} Bc8 {[%clk 00:45:17]} {[%emt 00:03:11]} 19. a4
{[%clk 00:44:01]} {[%emt 00:10:25]} Nd4 {[%clk 00:30:13]} {[%emt 00:15:34]} 20.
Bxd4 {[%clk 00:41:24]} {[%emt 00:03:08]} exd4 {[%clk 00:30:37]} {[%emt
00:00:06]} 21. Re1 {[%clk 00:41:01]} {[%emt 00:00:52]} Nb7 {[%clk 00:25:24]}
{[%emt 00:05:43]} 22. b4 {[%clk 00:31:14]} {[%emt 00:10:18]} c6 {[%clk
00:24:46]} {[%emt 00:01:08]} 23. N5f4 {[%clk 00:31:37]} {[%emt 00:00:07]} g5
{[%clk 00:24:19]} {[%emt 00:00:57]} 24. Nh5 {[%clk 00:30:50]} {[%emt 00:01:16]}
Bh8 {[%clk 00:24:13]} {[%emt 00:00:36]} 25. h3 {[%clk 00:30:38]} {[%emt
00:00:41]} Be6 {[%clk 00:12:39]} {[%emt 00:12:04]} 26. Rec1 {[%clk 00:26:03]}
{[%emt 00:05:06]} Bf7 {[%clk 00:04:57]} {[%emt 00:08:13]} 27. g4 {[%clk
00:26:24]} {[%emt 00:00:08]} Nd6 {[%clk 00:05:19]} {[%emt 00:00:08]} 28. c5
{[%clk 00:25:38]} {[%emt 00:01:15]} Nxe4 {[%clk 00:05:08]} {[%emt 00:00:42]} 29.
Bxe4 {[%clk 00:25:36]} {[%emt 00:00:31]} Rxe4 {[%clk 00:05:27]} {[%emt
00:00:11]} 30. cxb6 {[%clk 00:25:22]} {[%emt 00:00:45]} axb6 {[%clk 00:04:33]}
{[%emt 00:01:23]} 31. Rxc6 {[%clk 00:25:00]} {[%emt 00:00:53]} Re6 {[%clk
00:04:02]} {[%emt 00:01:00]} 32. Rxe6 {[%clk 00:23:37]} {[%emt 00:01:54]} Bxe6
{[%clk 00:04:30]} {[%emt 00:00:01]} 33. Ng3 {[%clk 00:23:51]} {[%emt 00:00:17]}
Bg7 {[%clk 00:04:29]} {[%emt 00:00:30]} 34. Nh5 {[%clk 00:09:33]} {[%emt
00:14:48]} 1/2-1/2

[Event "The Elitserien 2024/25: round 1 - 3"]
[Site "Scandic Infra City, Kanalvagen 10, Upplands Vasby, Sweden"]
[Date "2024.10.04"]
[Round "1.36"]
[White "Neiksans, Arturs"]
[Black "Rydstrom, Tom"]
[Result "1-0"]
[TimeControl "90 minutes for 40 moves + 30 minutes for the rest of the game + 30 seconds per move from move one."]
[WhiteTitle "GM"]
[BlackTitle "FM"]
[WhiteFideId "11601388"]
[BlackFideId "1714830"]
[WhiteElo "2571"]
[BlackElo "2274"]

1. Nf3 {[%clk 01:30:57]} {[%emt 00:00:02]} d5 {[%clk 01:30:42]} {[%emt
00:00:16]} 2. g3 {[%clk 01:30:54]} {[%emt 00:00:35]} Nd7 {[%clk 01:29:52]}
{[%emt 00:01:21]} 3. d4 {[%clk 01:30:47]} {[%emt 00:00:37]} Nb6 {[%clk
01:29:59]} {[%emt 00:00:24]} 4. Nc3 {[%clk 01:31:02]} {[%emt 00:00:14]} Bf5
{[%clk 01:29:47]} {[%emt 00:00:43]} 5. Nh4 {[%clk 01:30:21]} {[%emt 00:01:09]}
Bg4 {[%clk 01:29:54]} {[%emt 00:00:24]} 6. h3 {[%clk 01:30:28]} {[%emt
00:00:23]} Bh5 {[%clk 01:29:25]} {[%emt 00:00:59]} 7. Ng2 {[%clk 01:30:32]}
{[%emt 00:00:26]} f6 {[%clk 01:21:24]} {[%emt 00:08:31]} 8. Nf4 {[%clk
01:29:33]} {[%emt 00:01:29]} Bf7 {[%clk 01:21:53]} {[%emt 00:00:02]} 9. Bg2
{[%clk 01:27:42]} {[%emt 00:02:20]} c6 {[%clk 01:21:13]} {[%emt 00:01:10]} 10.
e4 {[%clk 01:23:21]} {[%emt 00:04:51]} e5 {[%clk 01:08:11]} {[%emt 00:13:32]}
11. dxe5 {[%clk 01:20:55]} {[%emt 00:02:55]} fxe5 {[%clk 01:06:18]} {[%emt
00:02:24]} 12. Nd3 {[%clk 01:21:10]} {[%emt 00:00:14]} d4 {[%clk 01:04:47]}
{[%emt 00:02:02]} 13. Ne2 {[%clk 01:21:25]} {[%emt 00:00:15]} Bd6 {[%clk
01:04:48]} {[%emt 00:00:28]} 14. f4 {[%clk 01:20:34]} {[%emt 00:01:21]} exf4
{[%clk 01:03:15]} {[%emt 00:02:04]} 15. Nxd4 {[%clk 01:07:44]} {[%emt
00:13:19]} fxg3 {[%clk 00:51:53]} {[%emt 00:11:54]} 16. Nf5 {[%clk 01:06:16]}
{[%emt 00:01:57]} Bf8 {[%clk 00:50:21]} {[%emt 00:02:01]} 17. O-O {[%clk
00:57:30]} {[%emt 00:09:16]} Be6 {[%clk 00:34:53]} {[%emt 00:15:58]} 18. Nxg7+
{[%clk 00:38:06]} {[%emt 00:19:54]} Bxg7 {[%clk 00:35:22]} {[%emt 00:00:02]} 19.
Qh5+ {[%clk 00:38:28]} {[%emt 00:00:07]} Ke7 {[%clk 00:35:38]} {[%emt
00:00:15]} 20. Bg5+ {[%clk 00:38:51]} {[%emt 00:00:07]} Bf6 {[%clk 00:32:58]}
{[%emt 00:03:09]} 21. Rad1 {[%clk 00:27:36]} {[%emt 00:11:44]} Qd4+ {[%clk
00:14:17]} {[%emt 00:19:12]} 22. Kh1 {[%clk 00:28:00]} {[%emt 00:00:06]} h6
{[%clk 00:04:23]} {[%emt 00:10:24]} 23. Nf4 {[%clk 00:24:58]} {[%emt 00:03:32]}
Bf7 {[%clk 00:04:52]} {[%emt 00:00:02]} 24. Ng6+ {[%clk 00:21:45]} {[%emt
00:03:42]} Ke8 {[%clk 00:02:24]} {[%emt 00:02:59]} 25. Bxf6 {[%clk 00:21:33]}
{[%emt 00:00:42]} Nxf6 {[%clk 00:02:42]} {[%emt 00:00:12]} 26. Qf5 {[%clk
00:21:49]} {[%emt 00:00:13]} Qxd1 {[%clk 00:01:15]} {[%emt 00:01:58]} 27. Qe5+
{[%clk 00:22:06]} {[%emt 00:00:13]} Qd4 {[%emt 00:01:29]} 28. Kg1+ Ke7+ {[%emt
00:00:02]} 29. Qh5+ Ke8+ {[%emt 00:00:05]} 1-0